Workbook

Sheet Приложение3
N1: Приложение 3 к решению региональной службы по тарифам Нижегородской области от 20 декабря 2016 года № 53/15. Стандартизированные тарифные ставки для расчета платы за технологическое присоединение к электрическим сетям территориальных сетевых организаций на территории Нижегородской области, на период с 1 января по 31 декабря 2017 года для заявителей, осуществляющих технологическое присоединение своих энергопринимающих устройств максимальной мощностью свыше 150 кВт
A4: Стандартизированные тарифные ставки на покрытие расходов на технологическое присоединение энергопринимающих устройств заявителей, не включающие в себя строительство объектов электросетевого хозяйства, С1, руб./кВт, (в ценах 2017 года)
A5: Наименование | K5: Постоянная схема электроснабжения | M5: Временная схема электроснабжения
K6: Уровень напряжения в точке присоединения, кВ
K7: 0.4 | L7: выше 0,4 | M7: 0.4 | N7: выше 0,4
A8: Стандартизированная тарифная ставка (руб./кВт) всего, в том числе по мероприятиям: | K8: ='[2]Лист1 (2)'!G71 -> 102.05 | L8: ='[2]Лист1 (2)'!J71 -> 90.21 | M8: ='[2]Лист1 (2)'!K71 -> 100.36 | N8: ='[2]Лист1 (2)'!L71 -> 88.52
A9: Подготовка и выдача сетевой организацией технических условий заявителю,С1.1 | K9: ='[2]Лист1 (2)'!G72 -> 37.81 | L9: ='[2]Лист1 (2)'!J72 -> 32.42 | M9: ='[2]Лист1 (2)'!K72 -> 36.55 | N9: ='[2]Лист1 (2)'!L72 -> 31.16
A10: Проверка сетевой организацией выполнения заявителем технических условий, С1.2 | K10: ='[2]Лист1 (2)'!G73 -> 22.72 | L10: ='[2]Лист1 (2)'!J73 -> 20.61 | M10: ='[2]Лист1 (2)'!K73 -> 22.30 | N10: ='[2]Лист1 (2)'!L73 -> 20.18
A11: Участие в осмотре должностным лицом органа федерального государственного энергетического надзора присоединяемых устройств заявителя, С1.3 | K11: ='[2]Лист1 (2)'!G74 -> 7.03 | L11: ='[2]Лист1 (2)'!J74 -> 5.84 | M11: ='[2]Лист1 (2)'!K74 -> 7.03 | N11: ='[2]Лист1 (2)'!L74 -> 5.84
A12: Фактические действия по присоединению и обеспечению работы устройств в электрической сети, С1.4 | K12: ='[2]Лист1 (2)'!G75 -> 34.49 | L12: ='[2]Лист1 (2)'!J75 -> 31.34 | M12: ='[2]Лист1 (2)'!K75 -> 34.49 | N12: ='[2]Лист1 (2)'!L75 -> 31.34
A14: Стандартизированные тарифные ставки на покрытие расходов в части строительства воздушных линий электропередач, С2, руб./1 км, без НДС, (в ценах 2001 года)
A15: СИП 2 | H15: СИП 3 | N15: АС
A16: 3х16мм2+1х25мм2 | B16: 3x25мм2+1x35мм2 | C16: 3x35мм2+1x50 мм2 | D16: 3x50мм2+1x50мм2 | E16: 3x70мм2+1x70мм2 | F16: 3x95мм2+1x95мм2 | G16: 3х120мм2+1х95мм2 | H16: 1х35мм2 | I16: 1х50мм2 | J16: 1х70мм2 | K16: 1х95мм2 | L16: 1х120мм2 | M16: 1х150мм2 | N16: 35мм2 | O16: 50мм2/8,0 | P16: 70мм2/11,0 | Q16: 95мм2/16,0 | R16: 120мм2/19,0 | S16: 150мм2/19,0
A17: ='[3]ССР_СИП-16'!$H$22 -> 132,275.68 | B17: ='[3]ССР_СИП-25'!$H$22 -> 138,120.00 | C17: ='[3]ССР_СИП-35'!$H$22 -> 150,494.60 | D17: ='[3]ССР_СИП-50'!$H$22 -> 158,698.96 | E17: ='[3]ССР_СИП-70'!$H$22 -> 174,122.30 | F17: ='[3]ССР_СИП-95'!$H$22 -> 197,910.61 | G17: ='[3]ССР_СИП-120'!$H$22 -> 208,510.41 | H17: ='[4]ССР_СИП-35'!$H$22 -> 204,898.49 | I17: ='[4]ССР_СИП-50'!$H$22 -> 216,388.41 | J17: ='[4]ССР_СИП-70'!$H$22 -> 232,075.79 | K17: ='[4]ССР_СИП-95'!$H$22 -> 252,197.45 | L17: ='[4]ССР_СИП-120'!$H$22 -> 270,743.02 | M17: ='[4]ССР_СИП-150'!$H$22 -> 308,871.28 | N17: ='[5]ССР_АС-35'!$H$22 -> 149,278.90 | O17: ='[5]ССР_АС-50 '!$H$22 -> 152,787.67 | P17: ='[5]ССР_АС-70'!$H$22 -> 159,418.67 | Q17: ='[5]ССР_АС-95'!$H$22 -> 168,622.04 | R17: ='[5]ССР_АС-120 '!$H$22 -> 173,500.02 | S17: ='[5]ССР_АС-150'!$H$22 -> 200,731.77
A19: Стандартизированные тарифные ставки на покрытие расходов в части строительства кабельных линий электропередач без прокола грунта, С3, руб./1 км, без НДС, (в ценах 2001 года)
A20: Тип застройки | C20: ААБл-1 | L20: АСБ-1
C21: 25мм2 | D21: 35мм2 | E21: 50мм2 | F21: 70мм2 | G21: 95мм2 | H21: 120мм2 | I21: 150мм2 | J21: 185мм2 | K21: 240мм2 | L21: 25мм2 | M21: 35мм2 | N21: 50мм2 | O21: 70мм2 | P21: 95мм2 | Q21: 120мм2 | R21: 150мм2 | S21: 185мм2 | T21: 240мм2
A22: городская застройка | C22: ='[6]ССР_ААБЛ-25'!$H$22 -> 259,237.06 | D22: ='[6]ССР_ААБЛ-35'!$H$22 -> 285,694.81 | E22: ='[6]ССР_ААБЛ-50'!$H$22 -> 295,426.65 | F22: ='[6]ССР_ААБЛ-70'!$H$22 -> 334,813.92 | G22: ='[6]ССР_ААБЛ-95'!$H$22 -> 360,754.60 | H22: ='[6]ССР_ААБЛ-120'!$H$22 -> 394,067.64 | I22: ='[6]ССР_ААБЛ-150'!$H$22 -> 424,689.19 | J22: ='[6]ССР_ААБЛ-185'!$H$22 -> 473,941.65 | K22: ='[6]ССР_ААБЛ-240'!$H$22 -> 550,367.60 | L22: ='[6]ССР_АСБ-25'!$H$22 -> 291,290.07 | M22: ='[6]ССР_АСБ-35'!$H$22 -> 291,290.07 | N22: ='[6]ССР_АСБ-50'!$H$22 -> 320,999.94 | O22: ='[6]ССР_АСБ-70'!$H$22 -> 354,487.15 | P22: ='[6]ССР_АСБ-95'!$H$22 -> 390,148.78 | Q22: ='[6]ССР_АСБ-120'!$H$22 -> 430,200.09 | R22: ='[6]ССР_АСБ-150'!$H$22 -> 470,997.06 | S22: ='[6]ССР_АСБ-185'!$H$22 -> 537,647.63 | T22: ='[6]ССР_АСБ-240'!$H$22 -> 631,912.56
A23: сельская застройка | C23: ='[7]ССР_ААБЛ-1 -25'!$H$22 -> 196,267.54 | D23: ='[7]ССР_ААБЛ-1 -35'!$H$22 -> 214,931.28 | E23: ='[7]ССР_ААБЛ-1 -50'!$H$22 -> 226,568.12 | F23: ='[7]ССР_ААБЛ-1 -70'!$H$22 -> 264,077.60 | G23: ='[7]ССР_ААБЛ-1 -95'!$H$22 -> 289,991.07 | H23: ='[7]ССР_ААБЛ-1 -120'!$H$22 -> 323,304.11 | I23: ='[7]ССР_ААБЛ-1 -150'!$H$22 -> 353,925.65 | J23: ='[7]ССР_ААБЛ-1 -185'!$H$22 -> 403,178.11 | K23: ='[7]ССР_ААБЛ-1 -240'!$H$22 -> 479,604.06 | L23: ='[7]ССР_АСБ-1 -25'!$H$22 -> 220,526.54 | M23: ='[7]ССР_АСБ-1 -35'!$H$22 -> 220,526.54 | N23: ='[7]ССР_АСБ-1 -50'!$H$22 -> 250,236.40 | O23: ='[7]ССР_АСБ-1 -70'!$H$22 -> 283,723.61 | P23: ='[7]ССР_АСБ-1 -95'!$H$22 -> 319,385.25 | Q23: ='[7]ССР_АСБ-1 -120'!$H$22 -> 359,436.55 | R23: ='[7]ССР_АСБ-1 -150'!$H$22 -> 400,233.52 | S23: ='[7]ССР_АСБ-1 -185'!$H$22 -> 428,857.54 | T23: ='[7]ССР_АСБ-1 -240'!$H$22 -> 513,025.96
A25: Тип застройки | C25: ААБл-10 | I25: АСБ-10 | O25: АПвПг-10
C26: 3х70мм2 | D26: 3х95мм2 | E26: 3х120мм2 | F26: 3х150мм2 | G26: 3х185мм2 | H26: 3х240мм2 | I26: 3х70мм2 | J26: 3х95мм2 | K26: 3х120мм2 | L26: 3х150мм2 | M26: 3х185мм2 | N26: 3х240мм2 | O26: 3х70мм2/35 | P26: 3х95мм2/35 | Q26: 3х120мм2/50 | R26: 3х150мм2/50 | S26: 3х185мм2/50 | T26: 3х240мм2/70 | U26: 3х300мм2/70 | V26: 3х400мм2/70 | W26: 3х500мм2/70
A27: городская застройка | C27: ='[8]ССР_ААБЛ 70'!$H$22 -> 342,711.10 | D27: ='[8]ССР_ААБЛ 95'!$H$22 -> 363,527.33 | E27: ='[8]ССР_ААБЛ 120'!$H$22 -> 394,693.16 | F27: ='[8]ССР_ААБЛ 150'!$H$22 -> 423,385.20 | G27: ='[8]ССР_ААБЛ 185'!$H$22 -> 465,815.04 | H27: ='[8]ССР_ААБЛ 240'!$H$22 -> 518,893.83 | I27: ='[8]ССР_АСБ 70'!$H$22 -> 379,485.80 | J27: ='[8]ССР_АСБ 95'!$H$22 -> 412,551.19 | K27: ='[8]ССР_АСБ 120'!$H$22 -> 443,804.10 | L27: ='[8]ССР_АСБ 150'!$H$22 -> 478,192.11 | M27: ='[8]ССР_АСБ 185'!$H$22 -> 522,608.58 | N27: ='[8]ССР_АСБ 240'!$H$22 -> 591,177.76 | O27: ='[9]ССР_АПвПг-70'!$H$24 -> 597,820.51 | P27: ='[9]ССР_АПвПг-95'!$H$24 -> 672,283.86 | Q27: ='[9]ССР_АПвПг-120'!$H$24 -> 770,451.95 | R27: ='[9]ССР_АПвПг-150'!$H$24 -> 792,813.95 | S27: ='[9]ССР_АПвПг-185'!$H$24 -> 824,507.74 | T27: ='[9]ССР_АПвПг-240'!$H$24 -> 968,729.99 | U27: ='[9]ССР_АПвПг-300'!$H$24 -> 1057313.99 | V27: ='[9]ССР_АПвПг-400'!$H$24 -> 1096698.54 | W27: ='[9]ССР_АПвПг-500'!$H$24 -> 1,221,509.26
A28: сельская застройка | C28: ='[10]ССР_ААБЛ 70'!$H$22 -> 299,178.45 | D28: ='[10]ССР_ААБЛ 95'!$H$22 -> 319,994.68 | E28: ='[10]ССР_ААБЛ 120'!$H$22 -> 351,160.51 | F28: ='[10]ССР_ААБЛ 150'!$H$22 -> 379,852.56 | G28: ='[10]ССР_ААБЛ 185'!$H$22 -> 422,282.39 | H28: ='[10]ССР_ААБЛ 240'!$H$22 -> 475,361.18 | I28: ='[10]ССР_АСБ 70'!$H$22 -> 335,953.15 | J28: ='[10]ССР_АСБ 95'!$H$22 -> 369,018.54 | K28: ='[10]ССР_АСБ 120'!$H$22 -> 400,271.45 | L28: ='[10]ССР_АСБ 150'!$H$22 -> 434,659.46 | M28: ='[10]ССР_АСБ 185'!$H$22 -> 479,075.94 | N28: ='[10]ССР_АСБ 240'!$H$22 -> 547,645.12 | O28: х | P28: х | Q28: х | R28: х | S28: х | T28: х | U28: х | V28: х | W28: х
A30: Стандартизированные тарифные ставки на покрытие расходов в части строительства кабельных линий электропередачив с проколом грунта методом горизонтально-направленного бурения, С3, руб./на 100 м. линий, без НДС, (в ценах 2001 года)
A31: Тип застройки | C31: ААБл-1 | L31: АСБ-1
C32: 25мм2 | D32: 35мм2 | E32: 50мм2 | F32: 70мм2 | G32: 95мм2 | H32: 120мм2 | I32: 150мм2 | J32: 185мм2 | K32: 240мм2 | L32: 25мм2 | M32: 35мм2 | N32: 50мм2 | O32: 70мм2 | P32: 95мм2 | Q32: 120мм2 | R32: 150мм2 | S32: 185мм2 | T32: 240мм2
A33: городская застройка | C33: ='[11]ССР_ААБЛ-25'!$H$22 -> 208,691.21 | D33: ='[11]ССР_ААБЛ-35'!$H$22 -> 211,336.99 | E33: ='[11]ССР_ААБЛ-50'!$H$22 -> 212,310.17 | F33: ='[11]ССР_ААБЛ-70'!$H$22 -> 216,251.62 | G33: ='[11]ССР_ААБЛ-95'!$H$22 -> 218,842.97 | H33: ='[11]ССР_ААБЛ-120'!$H$22 -> 222,174.27 | I33: ='[11]ССР_ААБЛ-150'!$H$22 -> 225,236.42 | J33: ='[11]ССР_ААБЛ-185'!$H$22 -> 230,161.67 | K33: ='[11]ССР_ААБЛ-240'!$H$22 -> 237,804.26 | L33: ='[11]ССР_АСБ -25'!$H$22 -> 211,896.51 | M33: ='[11]ССР_АСБ -35'!$H$22 -> 211,896.51 | N33: ='[11]ССР_АСБ -50'!$H$22 -> 214,867.50 | O33: ='[11]ССР_АСБ -70'!$H$22 -> 221,608.74 | P33: ='[11]ССР_АСБ -95'!$H$22 -> 221,782.38 | Q33: ='[11]ССР_АСБ -120'!$H$22 -> 225,787.51 | R33: ='[11]ССР_АСБ -150'!$H$22 -> 229,867.21 | S33: ='[11]ССР_АСБ -185'!$H$22 -> 237,588.83 | T33: ='[11]ССР_АСБ -240'!$H$22 -> 245,958.76
A34: сельская застройка | C34: ='[11]ССР_ААБЛ-25'!$H$22 -> 208,691.21 | D34: ='[11]ССР_ААБЛ-35'!$H$22 -> 211,336.99 | E34: ='[11]ССР_ААБЛ-50'!$H$22 -> 212,310.17 | F34: ='[11]ССР_ААБЛ-70'!$H$22 -> 216,251.62 | G34: ='[11]ССР_ААБЛ-95'!$H$22 -> 218,842.97 | H34: ='[11]ССР_ААБЛ-120'!$H$22 -> 222,174.27 | I34: ='[11]ССР_ААБЛ-150'!$H$22 -> 225,236.42 | J34: ='[11]ССР_ААБЛ-185'!$H$22 -> 230,161.67 | K34: ='[11]ССР_ААБЛ-240'!$H$22 -> 237,804.26 | L34: ='[11]ССР_АСБ -25'!$H$22 -> 211,896.51 | M34: ='[11]ССР_АСБ -35'!$H$22 -> 211,896.51 | N34: ='[11]ССР_АСБ -50'!$H$22 -> 214,867.50 | O34: ='[11]ССР_АСБ -70'!$H$22 -> 221,608.74 | P34: ='[11]ССР_АСБ -95'!$H$22 -> 221,782.38 | Q34: ='[11]ССР_АСБ -120'!$H$22 -> 225,787.51 | R34: ='[11]ССР_АСБ -150'!$H$22 -> 229,867.21 | S34: ='[11]ССР_АСБ -185'!$H$22 -> 237,588.83 | T34: ='[11]ССР_АСБ -240'!$H$22 -> 245,958.76
A36: Тип застройки | C36: ААБл-10 | I36: АCБ-10 | O36: АПвПг-10
C37: 3х70мм2 | D37: 3х95мм2 | E37: 3х120мм2 | F37: 3х150мм2 | G37: 3х185мм2 | H37: 3х240мм2 | I37: 3х70мм2 | J37: 3х95мм2 | K37: 3х120мм2 | L37: 3х150мм2 | M37: 3х185мм2 | N37: 3х240мм2 | O37: 3х70мм2/35 | P37: 3х95мм2/35 | Q37: 3х120мм2/50 | R37: 3х150мм2/50 | S37: 3х185мм2/50 | T37: 3х240мм2/70 | U37: 3х300мм2/70 | V37: 3х400мм2/70 | W37: 3х500мм2/70
A38: городская застройка | C38: ='[12]ССР_ААБЛ-10 -70'!$H$22 -> 169,942.67 | D38: ='[12]ССР_ААБЛ-10 -95'!$H$22 -> 172,024.29 | E38: ='[12]ССР_ААБЛ-10 -120'!$H$22 -> 175,140.87 | F38: ='[12]ССР_ААБЛ-10 -150'!$H$22 -> 178,010.08 | G38: ='[12]ССР_ААБЛ-10 -185'!$H$22 -> 182,253.06 | H38: ='[12]ССР_ААБЛ-10 -240'!$H$22 -> 187,560.94 | I38: ='[12]ССР_АСБ-10 -10'!$H$22 -> 173,620.14 | J38: ='[12]ССР_АСБ-10 -95'!$H$22 -> 176,926.68 | K38: ='[12]ССР_АСБ-10 -120'!$H$22 -> 180,051.97 | L38: ='[12]ССР_АСБ-10 -150'!$H$22 -> 183,490.77 | M38: ='[12]ССР_АСБ-10 -185'!$H$22 -> 187,932.41 | N38: ='[12]ССР_АСБ-10 -240'!$H$22 -> 194,789.33 | O38: ='[13]ССР_АПвПг-70'!$H$22 -> 181,334.41 | P38: ='[13]ССР_АПвПг-95'!$H$22 -> 188,537.77 | Q38: ='[13]ССР_АПвПг-120'!$H$22 -> 198,176.53 | R38: ='[13]ССР_АПвПг-150'!$H$22 -> 200,412.73 | S38: ='[13]ССР_АПвПг-185'!$H$22 -> 222,742.70 | T38: ='[13]ССР_АПвПг-240'!$H$22 -> 218,004.34 | U38: ='[13]ССР_АПвПг-300'!$H$22 -> 224,414.12 | V38: ='[13]ССР_АПвПг-400'!$H$22 -> 228,352.58 | W38: ='[13]ССР_АПвПг-500'!$H$22 -> 237,791.32
A39: сельская застройка | C39: ='[12]ССР_ААБЛ-10 -70'!$H$22 -> 169,942.67 | D39: ='[12]ССР_ААБЛ-10 -95'!$H$22 -> 172,024.29 | E39: ='[12]ССР_ААБЛ-10 -120'!$H$22 -> 175,140.87 | F39: ='[12]ССР_ААБЛ-10 -150'!$H$22 -> 178,010.08 | G39: ='[12]ССР_ААБЛ-10 -185'!$H$22 -> 182,253.06 | H39: ='[12]ССР_ААБЛ-10 -240'!$H$22 -> 187,560.94 | I39: ='[12]ССР_АСБ-10 -10'!$H$22 -> 173,620.14 | J39: ='[12]ССР_АСБ-10 -95'!$H$22 -> 176,926.68 | K39: ='[12]ССР_АСБ-10 -120'!$H$22 -> 180,051.97 | L39: ='[12]ССР_АСБ-10 -150'!$H$22 -> 183,490.77 | M39: ='[12]ССР_АСБ-10 -185'!$H$22 -> 187,932.41 | N39: ='[12]ССР_АСБ-10 -240'!$H$22 -> 194,789.33 | O39: ='[13]ССР_АПвПг-70'!$H$22 -> 181,334.41 | P39: ='[13]ССР_АПвПг-95'!$H$22 -> 188,537.77 | Q39: ='[13]ССР_АПвПг-120'!$H$22 -> 198,176.53 | R39: ='[13]ССР_АПвПг-150'!$H$22 -> 200,412.73 | S39: ='[13]ССР_АПвПг-185'!$H$22 -> 222,742.70 | T39: ='[13]ССР_АПвПг-240'!$H$22 -> 218,004.34 | U39: ='[13]ССР_АПвПг-300'!$H$22 -> 224,414.12 | V39: ='[13]ССР_АПвПг-400'!$H$22 -> 228,352.58 | W39: ='[13]ССР_АПвПг-500'!$H$22 -> 237,791.32
A41: Стандартизированные тарифные ставки на покрытие расходов в части строительства трансформаторных подстанций, С4, руб./кВт, без НДС, (в ценах 2001 года)
A42: 16 кВА | B42: 25 кВА | C42: 40 кВА | D42: 63 кВА | K42: 100 кВА | R42: 160 кВА
A43: СТП | D43: КТП киоскового типа | H43: КТП блочного типа в бетонной оболочке | K43: КТП киоскового типа | O43: КТП блочного типа в бетонной оболочке | R43: КТП киоскового типа | V43: КТП блочного типа в бетонной оболочке
A44: однотрансформаторная | D44: однотрансформаторная | F44: двухтрансформаторная | H44: однотрансформаторная | I44: двухтрансформаторная | K44: однотрансформаторная | M44: двухтрансформаторная | O44: однотрансформаторная | P44: двухтрансформаторная | R44: однотрансформаторная | T44: двухтрансформаторная | V44: однотрансформаторная | W44: двухтрансформаторная
D45: тупикового типа | E45: проходного типа | F45: тупикового типа | G45: проходного типа | I45: тупикового типа | J45: проходного типа | K45: тупикового типа | L45: проходного типа | M45: тупикового типа | N45: проходного типа | P45: тупикового типа | Q45: проходного типа | R45: тупикового типа | S45: проходного типа | T45: тупикового типа | U45: проходного типа | W45: тупикового типа | X45: проходного типа
A46: ='[14]ССР_СТП 16кВа'!$H$22 -> 3,734.80 | B46: ='[14]ССР_СТП 25кВа '!$H$22 -> 2,425.93 | C46: ='[14]ССР_СТП 40кВа'!$H$22 -> 1,545.10 | D46: ='[15]ССР_КТПт 63кВА'!$H$22 -> 1,265.66 | E46: ='[15]ССР_КТПп 63кВА'!$H$22 -> 2,633.31 | F46: ='[16]ССР_2КТПт 63 кВА'!$H$22 -> 10,243.58 | G46: ='[16]ССР_2КТПп 63 кВА'!$H$22 -> 5,990.67 | H46: ='[17]ССР_БКТП-63'!$H$22 -> 7,566.84 | I46: ='[18]ССР_БКТП-63 т'!$H$22 -> 13,970.73 | J46: ='[18]ССР_БКТП-63 п'!$H$22 -> 14,285.79 | K46: ='[15]ССР_КТПт 100кВА'!$H$22 -> 824.04 | L46: ='[15]ССР_КТПп 100кВА'!$H$22 -> 1,718.53 | M46: ='[16]ССР_2КТПт 100 кВА'!$H$22 -> 6,651.94 | N46: ='[16]ССР_2КТПп 100 кВА'!$H$22 -> 3,892.98 | O46: ='[17]ССР_БКТП-100'!$H$22 -> 5,362.57 | P46: ='[18]ССР_БКТП-100 т'!$H$22 -> 9,000.05 | Q46: ='[18]ССР_БКТП-100 п'!$H$22 -> 9,496.27 | R46: ='[15]ССР_КТПт 160кВА'!$H$22 -> 559.76 | S46: ='[15]ССР_КТПп 160кВА'!$H$22 -> 1,123.71 | T46: ='[16]ССР_2КТПт 160 кВА'!$H$22 -> 4,281.52 | U46: ='[16]ССР_2КТПп 160 кВА'!$H$22 -> 2,482.73 | V46: ='[17]ССР_БКТП-160'!$H$22 -> 3,475.66 | W46: ='[18]ССР_БКТП-160 т'!$H$22 -> 5,749.08 | X46: ='[18]ССР_БКТП-160 п'!$H$22 -> 6,121.25
A48: 250 кВА | H48: 400 кВА | O48: 630 кВА
A49: КТП киоскового типа | E49: КТП блочного типа в бетонной оболочке | H49: КТП киоскового типа | L49: КТП блочного типа в бетонной оболочке | O49: КТП киоскового типа | S49: КТП блочного типа в бетонной оболочке
A50: однотрансформаторная | C50: двухтрансформаторная | E50: однотрансформаторная | F50: двухтрансформаторная | H50: однотрансформаторная | J50: двухтрансформаторная | L50: однотрансформаторная | M50: двухтрансформаторная | O50: однотрансформаторная | Q50: двухтрансформаторная | S50: однотрансформаторная | T50: двухтрансформаторная
A51: тупикового типа | B51: проходного типа | C51: тупикового типа | D51: проходного типа | F51: тупикового типа | G51: проходного типа | H51: тупикового типа | I51: проходного типа | J51: тупикового типа | K51: проходного типа | M51: тупикового типа | N51: проходного типа | O51: тупикового типа | P51: проходного типа | Q51: тупикового типа | R51: проходного типа | T51: тупикового типа | U51: проходного типа
A52: ='[15]ССР_КТПт 250кВА'!$H$22 -> 385.71 | B52: ='[15]ССР_КТПп 250кВА'!$H$22 -> 774.75 | C52: ='[16]ССР_2КТПт 250 кВА'!$H$22 -> 2,819.57 | D52: ='[16]ССР_2КТПп 250 кВА'!$H$22 -> 1,708.04 | E52: ='[17]ССР_БКТП-250'!$H$22 -> 2,184.72 | F52: ='[18]ССР_БКТП-250 т'!$H$22 -> 3,758.81 | G52: ='[18]ССР_БКТП-250 п '!$H$22 -> 4,155.78 | H52: ='[19]ССР_КТПт 400кВА'!$H$22 -> 286.58 | I52: ='[19]ССР_КТПп 400кВА'!$H$22 -> 504.54 | J52: ='[20]ССР_2КТПт 400кВА'!$H$22 -> 1,845.01 | K52: ='[20]ССР_2КТПп 400кВА '!$H$22 -> 1,175.12 | L52: ='[21]ССР_БКТП-400'!$H$22 -> 1,441.56 | M52: ='[22]ССР_2БКТП-400 т'!$H$22 -> 2,461.84 | N52: ='[22]ССР_2БКТП-400 п'!$H$22 -> 2,709.95 | O52: ='[19]ССР_КТПт 630кВА'!$H$22 -> 266.20 | P52: ='[19]ССР_КТПп 630кВА'!$H$22 -> 399.11 | Q52: ='[20]ССР_2КТПт 630кВА'!$H$22 -> 1,281.70 | R52: ='[20]ССР_2КТПп 630кВА'!$H$22 -> 872.13 | S52: ='[21]ССР_БКТП-630'!$H$22 -> 978.29 | T52: ='[22]ССР_2БКТП-630 т'!$H$22 -> 1,752.11 | U52: ='[22]ССР_2БКТП-630 п'!$H$22 -> 1,815.12
A54: 1000 кВА | H54: 1250 кВА | K54: 1600 кВА | N54: 2500 кВА | P54: РП 6 кВ | R54: РП 10 кВ
A55: КТП киоскового типа | E55: КТП блочного типа в бетонной оболочке | H55: КТП блочного типа в бетонной оболочке | K55: КТП блочного типа в бетонной оболочке | N55: КТП блочного типа в бетонной оболочке
A56: однотрансформаторная | C56: двухтрансформаторная | E56: однотрансформаторная | F56: двухтрансформаторная | H56: однотрансформаторная | I56: двухтрансформаторная | K56: однотрансформаторная | L56: двухтрансформаторная | N56: однотрансформаторная | O56: двухтрансформаторная
A57: тупикового типа | B57: проходного типа | C57: тупикового типа | D57: проходного типа | F57: тупикового типа | G57: проходного типа | I57: тупикового типа | J57: проходного типа | L57: тупикового типа | M57: проходного типа
A58: ='[19]ССР_КТПт 1000кВА'!$H$22 -> 248.66 | B58: ='[19]ССР_КТПп 1000кВА'!$H$22 -> 307.01 | C58: ='[20]ССР_2КТПт 1000кВА '!$H$22 -> 966.26 | D58: ='[20]ССР_2КТПп 1000кВА'!$H$22 -> 608.99 | E58: ='[21]ССР_БКТП-1000'!$H$22 -> 685.79 | F58: ='[22]ССР_2БКТП-1000 т'!$H$22 -> 1,145.56 | G58: ='[22]ССР_2БКТП-1000 п'!$H$22 -> 1,302.32 | H58: ='[21]ССР_БКТП-1250'!$H$22 -> 572.45 | I58: ='[22]ССР_2БКТП-1250 т'!$H$22 -> 1,121.25 | J58: ='[22]ССР_2БКТП-1250 п'!$H$22 -> 1,168.88 | K58: ='[21]ССР_БКТП-1600'!$H$22 -> 493.51 | L58: ='[22]ССР_2БКТП-1600 т'!$H$22 -> 987.62 | M58: ='[22]ССР_2БКТП-1600 п'!$H$22 -> 1,037.24 | N58: ='[22]ССР_БКТП-2500 п (2)'!$H$22 -> 389.66 | O58: ='[22]ССР_2БКТП-2500 п '!$H$22 -> 897.92 | P58: ='[23]ССР_РП 6 кВ'!$H$22 -> 702.27 | R58: ='[24]ССР_РП 10 кВ'!$H$22/11000 -> 493.53
A60: Примечание:
A61: Условия применения стандартизированных тарифных ставок определены приказом ФСТ России от 11.09.2012 № 209-э/1 "Об утверждении Методических указаний по определению размера платы за технологическое присоединение к электрическим сетям"

Sheet Приложение 1
G1: Приложение 1 к решению региональной службы по тарифам Нижегородской области от 20 декабря 2016 года № 53/15. Стандартизированные тарифные ставки для расчета платы за технологическое присоединение к электрическим сетям территориальных сетевых организаций на территории Нижегородской области, не включающие в себя строительство объектов электросетевого хозяйства, для заявителей, осуществляющих технологическое присоединение своих энергопринимающих устройств максимальной мощностью до 150 кВт
A4: Стандартизированные тарифные ставки на покрытие расходов на технологическое присоединение энергопринимающих устройств заявителей, не включающие в себя строительство объектов электросетевого хозяйства, С1, руб./кВт, (в ценах 2017 года) с 1 января по 31 декабря 2017 года
A5: Наименование | K5: Постоянная схема электроснабжения | M5: Временная схема электроснабжения
K6: Уровень напряжения в точке присоединения, кВ
K7: 0.4 | L7: выше 0,4 | M7: 0.4 | N7: выше 0,4
A8: Стандартизированная тарифная ставка (руб./кВт) всего, в том числе по мероприятиям: | K8: =SUM(K9:K12)+0.01 -> 102.05 | L8: =SUM(L9:L12) -> 90.21 | M8: 100.36 | N8: 88.52
A9: Подготовка и выдача сетевой организацией технических условий заявителю,С1.1 | K9: ='[2]Лист1 (2)'!G72 -> 37.81 | L9: ='[2]Лист1 (2)'!J72 -> 32.42 | M9: ='[2]Лист1 (2)'!K72 -> 36.55 | N9: ='[2]Лист1 (2)'!L72 -> 31.16
A10: Проверка сетевой организацией выполнения заявителем технических условий, С1.2 | K10: ='[2]Лист1 (2)'!G73 -> 22.72 | L10: ='[2]Лист1 (2)'!J73 -> 20.61 | M10: ='[2]Лист1 (2)'!K73 -> 22.30 | N10: ='[2]Лист1 (2)'!L73 -> 20.18
A11: Участие в осмотре должностным лицом органа федерального государственного энергетического надзора присоединяемых устройств заявителя, С1.3 | K11: ='[2]Лист1 (2)'!G74 -> 7.03 | L11: ='[2]Лист1 (2)'!J74 -> 5.84 | M11: ='[2]Лист1 (2)'!K74 -> 7.03 | N11: ='[2]Лист1 (2)'!L74 -> 5.84
A12: Фактические действия по присоединению и обеспечению работы устройств в электрической сети, С1.4 | K12: ='[2]Лист1 (2)'!G75 -> 34.49 | L12: ='[2]Лист1 (2)'!J75 -> 31.34 | M12: ='[2]Лист1 (2)'!K75 -> 34.49 | N12: ='[2]Лист1 (2)'!L75 -> 31.34
A16: Примечание:
A17: Условия применения стандартизированных тарифных ставок определены приказом ФСТ России от 11.09.2012 № 209-э/1 "Об утверждении Методических указаний по определению размера платы за технологическое присоединение к электрическим сетям"

Sheet Приложение 4
B2: Приложение 4 к решению региональной службы по тарифам Нижегородской области от 20 декабря 2016 года № 53/15
A4: Ставки за единицу максимальной мощности для расчета платы за технологическое присединение к электрическим сетям территориальных сетевых организаций на территории Нижегородской области (в ценах 2017 года)
A7: руб./кВт (без НДС)
A8: № | B8: Наименование | C8: Ставки за единицу максимальной мощности на период с 1 января по 30 сентября 2017 года ** | G8: Ставки за единицу максимальной мощности на период с 1 октября по 31 декабря 2017 года **
C9: Диапазон присоединяемой максимальной мощности, кВт | G9: Диапазон присоединяемой максимальной мощности, кВт
C10: до 150 включительно | E10: свыше 150 | G10: до 150 включительно | I10: свыше 150
C11: Уровень напряжения, кВ | G11: Уровень напряжения, кВ
C12: 0.4 | D12: выше 0,4 | E12: 0.4 | F12: выше 0,4 | G12: 0.4 | H12: выше 0,4 | I12: 0.4 | J12: выше 0,4
A13: 1 | B13: Подготовка, выдача сетевой организацией технических условий и их согласование | C13: ='[2]Лист1 (2)'!G72 -> 37.81 | D13: ='[2]Лист1 (2)'!J72 -> 32.42 | E13: =C13 -> 37.81 | F13: =D13 -> 32.42 | G13: 37.81 | H13: 32.42 | I13: 37.81 | J13: 32.42
A14: 2 | B14: Разработка сетевой организацией проектной документации по строительству объектов электросетевого хозяйства - от существующих объектов электросетевого хозяйства до присоединяемых энергопринимающих устройств и (или) объектов электроэнергетики | C14: х | D14: х | E14: х | F14: х | G14: х | H14: х | I14: х | J14: х
A15: 3 | B15: Выполнение сетевой организацией, мероприятий, связанных со строительством объектов электросетевого хозяйства - от существующих объектов электросетевого хозяйства до присоединяемых энергопринимающих устройств и (или) объектов электроэнергетики | C15: х | D15: х | E15: х | F15: х | G15: х | H15: х | I15: х | J15: х
A16: 3.1. | B16: строительство воздушных линий | C16: ='[2]Лист2 (2)'!D19 -> 1,056.46 | D16: ='[2]Лист2 (2)'!I19 -> 212.51 | E16: ='[2]Лист2 (2)'!L19 -> 744.19 | F16: ='[2]Лист2 (2)'!Q19 -> 1,663.60 | G16: - | H16: - | I16: 744.19 | J16: 1,663.60
A17: 3.2. | B17: строительство кабельных линий | C17: ='[2]Лист2 (2)'!U19 -> 1,825.59 | D17: ='[2]Лист2 (2)'!Z19 -> 183.28 | E17: ='[2]Лист2 (2)'!AC19 -> 2,696.91 | F17: ='[2]Лист2 (2)'!AH19 -> 1,596.50 | G17: - | H17: - | I17: 2,696.91 | J17: 1,596.50
A18: 3.3. | B18: строительство пунктов секционирования | C18: Ставки* равны стандартизированным тарифным ставкам С4 | G18: Ставки* равны стандартизированным тарифным ставкам С4
A19: 3.4. | B19: строительство комплектных трансформаторных подстанций (КТП), распределительных трансформаторных подстанций (РТП) с уровнем напряжения до 35 кВ | C19: Ставки* равны стандартизированным тарифным ставкам С4 | G19: Ставки* равны стандартизированным тарифным ставкам С4
A20: 3.5. | B20: строительство центров питания, подстанций уровнем напряжения 35 кВ и выше (ПС) | C20: - | D20: - | E20: - | F20: - | G20: - | H20: - | I20: - | J20: -
A21: 4 | B21: Проверка сетевой организацией выполнения заявителем ТУ | C21: ='[2]Лист1 (2)'!G73 -> 22.72 | D21: ='[2]Лист1 (2)'!J73 -> 20.61 | E21: =C21 -> 22.72 | F21: 20.61 | G21: 22.72 | H21: 20.61 | I21: 22.72 | J21: 20.61
A22: 5 | B22: Участие в осмотре должностным лицом Ростехнадзора присоединяемых устройств | C22: ='[2]Лист1 (2)'!G74 -> 7.03 | D22: ='[2]Лист1 (2)'!J74 -> 5.84 | E22: 7.03 | F22: 5.84 | G22: 7.03 | H22: 5.84 | I22: 7.03 | J22: 5.84
A23: 6 | B23: Фактические действия по присоединению и обеспечению работы устройств в электрической сети | C23: ='[2]Лист1 (2)'!G75 -> 34.49 | D23: ='[2]Лист1 (2)'!J75 -> 31.34 | E23: 34.49 | F23: 31.34 | G23: 34.49 | H23: 31.34 | I23: 34.49 | J23: 31.34
B25: Примечание:
A26: *) – в случае, если согласно техническим условиям предусматриваются мероприятия по строительству комплектных трансформаторных подстанций (КТП), распределительных трансформаторных подстанций (РТП) с уровнем напряжения до 35 кВ, для расчета платы за технологическое присоединение посредством ставок платы за единицу максимальной мощности на покрытие расходов сетевой организации на строительство подстанций, необходимо умножать данные ставки на индекс изменения сметной стоимости по строительно-монтажным работам (Zизм.ст)
A31: **) - Условия применения ставок за единицу максимальной мощности определены приказом ФСТ России от 11.09.2012 № 209-э/1 "Об утверждении Методических указаний по определению размера платы за технологическое присоединение к электрическим сетям"

Sheet Приложение 2
N1: Приложение 2 к решению региональной службы по тарифам Нижегородской области от 20 декабря 2016 года № 53/15. Стандартизированные тарифные ставки для расчета платы за технологическое присоединение к электрическим сетям территориальных сетевых организаций на территории Нижегородской области, для заявителей, осуществляющих технологическое присоединение своих энергопринимающих устройств максимальной мощностью до 150 кВт
A4: Стандартизированные тарифные ставки на покрытие расходов в части строительства воздушных линий электропередач, С2, руб./1 км, без НДС, (в ценах 2001 года) с 1 января по 30 сентября 2017 года
A5: СИП 2 | H5: СИП 3 | N5: АС
A6: 3х16мм2+1х25мм2 | B6: 3x25мм2+1x35мм2 | C6: 3x35мм2+1x50 мм2 | D6: 3x50мм2+1x50мм2 | E6: 3x70мм2+1x70мм2 | F6: 3x95мм2+1x95мм2 | G6: 3х120мм2+1х95мм2 | H6: 1х35мм2 | I6: 1х50мм2 | J6: 1х70мм2 | K6: 1х95мм2 | L6: 1х120мм2 | M6: 1х150мм2 | N6: 35мм2 | O6: 50мм2/8,0 | P6: 70мм2/11,0 | Q6: 95мм2/16,0 | R6: 120мм2/19,0 | S6: 150мм2/19,0
A7: =0.5*'[3]ССР_СИП-16'!$H$22 -> 66,137.84 | B7: =0.5*'[3]ССР_СИП-25'!$H$22 -> 69,060.00 | C7: =0.5*'[3]ССР_СИП-35'!$H$22 -> 75,247.30 | D7: =0.5*'[3]ССР_СИП-50'!$H$22 -> 79,349.48 | E7: =0.5*'[3]ССР_СИП-70'!$H$22 -> 87,061.15 | F7: =0.5*'[3]ССР_СИП-95'!$H$22 -> 98,955.31 | G7: =0.5*'[3]ССР_СИП-120'!$H$22 -> 104,255.21 | H7: =0.5*'[4]ССР_СИП-35'!$H$22 -> 102,449.24 | I7: =0.5*'[4]ССР_СИП-50'!$H$22 -> 108,194.20 | J7: =0.5*'[4]ССР_СИП-70'!$H$22 -> 116,037.90 | K7: ='[4]ССР_СИП-95'!$H$22*0.5 -> 126,098.72 | L7: ='[4]ССР_СИП-120'!$H$22*0.5 -> 135,371.51 | M7: ='[4]ССР_СИП-150'!$H$22*0.5 -> 154,435.64 | N7: ='[5]ССР_АС-35'!$H$22*0.5 -> 74,639.45 | O7: ='[5]ССР_АС-50 '!$H$22*0.5 -> 76,393.83 | P7: ='[5]ССР_АС-70'!$H$22*0.5 -> 79,709.34 | Q7: ='[5]ССР_АС-95'!$H$22*0.5 -> 84,311.02 | R7: ='[5]ССР_АС-120 '!$H$22*0.5 -> 86,750.01 | S7: ='[5]ССР_АС-150'!$H$22*0.5 -> 100,365.88
A9: Стандартизированные тарифные ставки на покрытие расходов в части строительства кабельных линий электропередач без прокола грунта, С3, руб./1 км, без НДС, (в ценах 2001 года) с 1 января по 30 сентября 2017 года
A10: Тип застройки | C10: ААБл-1 | L10: АСБ-1
C11: 25мм2 | D11: 35мм2 | E11: 50мм2 | F11: 70мм2 | G11: 95мм2 | H11: 120мм2 | I11: 150мм2 | J11: 185мм2 | K11: 240мм2 | L11: 25мм2 | M11: 35мм2 | N11: 50мм2 | O11: 70мм2 | P11: 95мм2 | Q11: 120мм2 | R11: 150мм2 | S11: 185мм2 | T11: 240мм2
A12: городская застройка | C12: ='[6]ССР_ААБЛ-25'!$H$22*0.5 -> 129,618.53 | D12: ='[6]ССР_ААБЛ-35'!$H$22*0.5 -> 142,847.41 | E12: ='[6]ССР_ААБЛ-50'!$H$22*0.5 -> 147,713.32 | F12: ='[6]ССР_ААБЛ-70'!$H$22*0.5 -> 167,406.96 | G12: ='[6]ССР_ААБЛ-95'!$H$22*0.5 -> 180,377.30 | H12: ='[6]ССР_ААБЛ-120'!$H$22*0.5 -> 197,033.82 | I12: ='[6]ССР_ААБЛ-150'!$H$22*0.5 -> 212,344.59 | J12: ='[6]ССР_ААБЛ-185'!$H$22*0.5 -> 236,970.82 | K12: ='[6]ССР_ААБЛ-240'!$H$22*0.5 -> 275,183.80 | L12: ='[6]ССР_АСБ-25'!$H$22*0.5 -> 145,645.04 | M12: ='[6]ССР_АСБ-35'!$H$22*0.5 -> 145,645.04 | N12: ='[6]ССР_АСБ-50'!$H$22*0.5 -> 160,499.97 | O12: ='[6]ССР_АСБ-70'!$H$22*0.5 -> 177,243.57 | P12: ='[6]ССР_АСБ-95'!$H$22*0.5 -> 195,074.39 | Q12: ='[6]ССР_АСБ-120'!$H$22*0.5 -> 215,100.04 | R12: ='[6]ССР_АСБ-150'!$H$22*0.5 -> 235,498.53 | S12: ='[6]ССР_АСБ-185'!$H$22*0.5 -> 268,823.82 | T12: ='[6]ССР_АСБ-240'!$H$22*0.5 -> 315,956.28
A13: сельская застройка | C13: ='[7]ССР_ААБЛ-1 -25'!$H$22*0.5 -> 98,133.77 | D13: ='[7]ССР_ААБЛ-1 -35'!$H$22*0.5 -> 107,465.64 | E13: ='[7]ССР_ААБЛ-1 -50'!$H$22*0.5 -> 113,284.06 | F13: ='[7]ССР_ААБЛ-1 -70'!$H$22*0.5 -> 132,038.80 | G13: ='[7]ССР_ААБЛ-1 -95'!$H$22*0.5 -> 144,995.53 | H13: ='[7]ССР_ААБЛ-1 -120'!$H$22*0.5 -> 161,652.05 | I13: ='[7]ССР_ААБЛ-1 -150'!$H$22*0.5 -> 176,962.83 | J13: ='[7]ССР_ААБЛ-1 -185'!$H$22*0.5 -> 201,589.06 | K13: ='[7]ССР_ААБЛ-1 -240'!$H$22*0.5 -> 239,802.03 | L13: ='[7]ССР_АСБ-1 -25'!$H$22*0.5 -> 110,263.27 | M13: ='[7]ССР_АСБ-1 -35'!$H$22*0.5 -> 110,263.27 | N13: ='[7]ССР_АСБ-1 -50'!$H$22*0.5 -> 125,118.20 | O13: ='[7]ССР_АСБ-1 -70'!$H$22*0.5 -> 141,861.81 | P13: ='[7]ССР_АСБ-1 -95'!$H$22*0.5 -> 159,692.62 | Q13: ='[7]ССР_АСБ-1 -120'!$H$22*0.5 -> 179,718.27 | R13: ='[7]ССР_АСБ-1 -150'!$H$22*0.5 -> 200,116.76 | S13: ='[7]ССР_АСБ-1 -185'!$H$22*0.5 -> 214,428.77 | T13: ='[7]ССР_АСБ-1 -240'!$H$22*0.5 -> 256,512.98
A15: Тип застройки | C15: ААБл-10 | I15: АСБ-10 | O15: АПвПг-10
C16: 3х70мм2 | D16: 3х95мм2 | E16: 3х120мм2 | F16: 3х150мм2 | G16: 3х185мм2 | H16: 3х240мм2 | I16: 3х70мм2 | J16: 3х95мм2 | K16: 3х120мм2 | L16: 3х150мм2 | M16: 3х185мм2 | N16: 3х240мм2 | O16: 3х70мм2/35 | P16: 3х95мм2/35 | Q16: 3х120мм2/50 | R16: 3х150мм2/50 | S16: 3х185мм2/50 | T16: 3х240мм2/70 | U16: 3х300мм2/70 | V16: 3х400мм2/70 | W16: 3х500мм2/70
A17: городская застройка | C17: ='[8]ССР_ААБЛ 70'!$H$22*0.5 -> 171,355.55 | D17: ='[8]ССР_ААБЛ 95'!$H$22*0.5 -> 181,763.66 | E17: ='[8]ССР_ААБЛ 120'!$H$22*0.5 -> 197,346.58 | F17: ='[8]ССР_ААБЛ 150'!$H$22*0.5 -> 211,692.60 | G17: ='[8]ССР_ААБЛ 185'!$H$22*0.5 -> 232,907.52 | H17: ='[8]ССР_ААБЛ 240'!$H$22*0.5 -> 259,446.92 | I17: ='[8]ССР_АСБ 70'!$H$22*0.5 -> 189,742.90 | J17: ='[8]ССР_АСБ 95'!$H$22*0.5 -> 206,275.59 | K17: ='[8]ССР_АСБ 120'!$H$22*0.5 -> 221,902.05 | L17: ='[8]ССР_АСБ 150'!$H$22*0.5 -> 239,096.05 | M17: ='[8]ССР_АСБ 185'!$H$22*0.5 -> 261,304.29 | N17: ='[8]ССР_АСБ 240'!$H$22*0.5 -> 295,588.88 | O17: ='[9]ССР_АПвПг-70'!$H$24*0.5 -> 298,910.25 | P17: ='[9]ССР_АПвПг-95'!$H$24*0.5 -> 336,141.93 | Q17: ='[9]ССР_АПвПг-120'!$H$24*0.5 -> 385,225.98 | R17: ='[9]ССР_АПвПг-150'!$H$24*0.5 -> 396,406.98 | S17: ='[9]ССР_АПвПг-185'!$H$24*0.5 -> 412,253.87 | T17: ='[9]ССР_АПвПг-240'!$H$24*0.5 -> 484,364.99 | U17: ='[9]ССР_АПвПг-300'!$H$24*0.5 -> 528656.99 | V17: ='[9]ССР_АПвПг-400'!$H$24*0.5 -> 548349.27 | W17: ='[9]ССР_АПвПг-500'!$H$24*0.5 -> 610,754.63
A18: сельская застройка | C18: ='[10]ССР_ААБЛ 70'!$H$22*0.5 -> 149,589.23 | D18: ='[10]ССР_ААБЛ 95'!$H$22*0.5 -> 159,997.34 | E18: ='[10]ССР_ААБЛ 120'!$H$22*0.5 -> 175,580.25 | F18: ='[10]ССР_ААБЛ 150'!$H$22*0.5 -> 189,926.28 | G18: ='[10]ССР_ААБЛ 185'!$H$22*0.5 -> 211,141.19 | H18: ='[10]ССР_ААБЛ 240'!$H$22*0.5 -> 237,680.59 | I18: ='[10]ССР_АСБ 70'!$H$22*0.5 -> 167,976.57 | J18: ='[10]ССР_АСБ 95'!$H$22*0.5 -> 184,509.27 | K18: ='[10]ССР_АСБ 120'!$H$22*0.5 -> 200,135.73 | L18: ='[10]ССР_АСБ 150'!$H$22*0.5 -> 217,329.73 | M18: ='[10]ССР_АСБ 185'!$H$22*0.5 -> 239,537.97 | N18: ='[10]ССР_АСБ 240'!$H$22*0.5 -> 273,822.56 | O18: х | P18: х | Q18: х | R18: х | S18: х | T18: х | U18: х | V18: х | W18: х
A20: Стандартизированные тарифные ставки на покрытие расходов в части строительства кабельных линий электропередачив с проколом грунта методом горизонтально-направленного бурения, С3, руб./на 100 м. линий, без НДС, (в ценах 2001 года) с 1 января по 30 сентября 2017 года
A21: Тип застройки | C21: ААБл-1 | L21: АСБ-1
C22: 25мм2 | D22: 35мм2 | E22: 50мм2 | F22: 70мм2 | G22: 95мм2 | H22: 120мм2 | I22: 150мм2 | J22: 185мм2 | K22: 240мм2 | L22: 25мм2 | M22: 35мм2 | N22: 50мм2 | O22: 70мм2 | P22: 95мм2 | Q22: 120мм2 | R22: 150мм2 | S22: 185мм2 | T22: 240мм2
A23: городская застройка | C23: ='[11]ССР_ААБЛ-25'!$H$22*0.5 -> 104,345.61 | D23: ='[11]ССР_ААБЛ-35'!$H$22*0.5 -> 105,668.49 | E23: ='[11]ССР_ААБЛ-50'!$H$22*0.5 -> 106,155.08 | F23: ='[11]ССР_ААБЛ-70'!$H$22*0.5 -> 108,125.81 | G23: ='[11]ССР_ААБЛ-95'!$H$22*0.5 -> 109,421.48 | H23: ='[11]ССР_ААБЛ-120'!$H$22*0.5 -> 111,087.13 | I23: ='[11]ССР_ААБЛ-150'!$H$22*0.5 -> 112,618.21 | J23: ='[11]ССР_ААБЛ-185'!$H$22*0.5 -> 115,080.83 | K23: ='[11]ССР_ААБЛ-240'!$H$22*0.5 -> 118,902.13 | L23: ='[11]ССР_АСБ -25'!$H$22*0.5 -> 105,948.26 | M23: ='[11]ССР_АСБ -35'!$H$22*0.5 -> 105,948.26 | N23: ='[11]ССР_АСБ -50'!$H$22*0.5 -> 107,433.75 | O23: ='[11]ССР_АСБ -70'!$H$22*0.5 -> 110,804.37 | P23: ='[11]ССР_АСБ -95'!$H$22*0.5 -> 110,891.19 | Q23: ='[11]ССР_АСБ -120'!$H$22*0.5 -> 112,893.76 | R23: ='[11]ССР_АСБ -150'!$H$22*0.5 -> 114,933.61 | S23: ='[11]ССР_АСБ -185'!$H$22*0.5 -> 118,794.42 | T23: ='[11]ССР_АСБ -240'!$H$22*0.5 -> 122,979.38
A24: сельская застройка | C24: ='[11]ССР_ААБЛ-25'!$H$22*0.5 -> 104,345.61 | D24: ='[11]ССР_ААБЛ-35'!$H$22*0.5 -> 105,668.49 | E24: ='[11]ССР_ААБЛ-50'!$H$22*0.5 -> 106,155.08 | F24: ='[11]ССР_ААБЛ-70'!$H$22*0.5 -> 108,125.81 | G24: ='[11]ССР_ААБЛ-95'!$H$22*0.5 -> 109,421.48 | H24: ='[11]ССР_ААБЛ-120'!$H$22*0.5 -> 111,087.13 | I24: ='[11]ССР_ААБЛ-150'!$H$22*0.5 -> 112,618.21 | J24: ='[11]ССР_ААБЛ-185'!$H$22*0.5 -> 115,080.83 | K24: ='[11]ССР_ААБЛ-240'!$H$22*0.5 -> 118,902.13 | L24: ='[11]ССР_АСБ -25'!$H$22*0.5 -> 105,948.26 | M24: ='[11]ССР_АСБ -35'!$H$22*0.5 -> 105,948.26 | N24: ='[11]ССР_АСБ -50'!$H$22*0.5 -> 107,433.75 | O24: ='[11]ССР_АСБ -70'!$H$22*0.5 -> 110,804.37 | P24: ='[11]ССР_АСБ -95'!$H$22*0.5 -> 110,891.19 | Q24: ='[11]ССР_АСБ -120'!$H$22*0.5 -> 112,893.76 | R24: ='[11]ССР_АСБ -150'!$H$22*0.5 -> 114,933.61 | S24: ='[11]ССР_АСБ -185'!$H$22*0.5 -> 118,794.42 | T24: ='[11]ССР_АСБ -240'!$H$22*0.5 -> 122,979.38
A26: Тип застройки | C26: ААБл-10 | I26: АCБ-10 | O26: АПвПг-10
C27: 3х70мм2 | D27: 3х95мм2 | E27: 3х120мм2 | F27: 3х150мм2 | G27: 3х185мм2 | H27: 3х240мм2 | I27: 3х70мм2 | J27: 3х95мм2 | K27: 3х120мм2 | L27: 3х150мм2 | M27: 3х185мм2 | N27: 3х240мм2 | O27: 3х70мм2/35 | P27: 3х95мм2/35 | Q27: 3х120мм2/50 | R27: 3х150мм2/50 | S27: 3х185мм2/50 | T27: 3х240мм2/70 | U27: 3х300мм2/70 | V27: 3х400мм2/70 | W27: 3х500мм2/70
A28: городская застройка | C28: ='[12]ССР_ААБЛ-10 -70'!$H$22*0.5 -> 84,971.33 | D28: ='[12]ССР_ААБЛ-10 -95'!$H$22*0.5 -> 86,012.14 | E28: ='[12]ССР_ААБЛ-10 -120'!$H$22*0.5 -> 87,570.44 | F28: ='[12]ССР_ААБЛ-10 -150'!$H$22*0.5 -> 89,005.04 | G28: ='[12]ССР_ААБЛ-10 -185'!$H$22*0.5 -> 91,126.53 | H28: ='[12]ССР_ААБЛ-10 -240'!$H$22*0.5 -> 93,780.47 | I28: ='[12]ССР_АСБ-10 -10'!$H$22*0.5 -> 86,810.07 | J28: ='[12]ССР_АСБ-10 -95'!$H$22*0.5 -> 88,463.34 | K28: ='[12]ССР_АСБ-10 -120'!$H$22*0.5 -> 90,025.98 | L28: ='[12]ССР_АСБ-10 -150'!$H$22*0.5 -> 91,745.38 | M28: ='[12]ССР_АСБ-10 -185'!$H$22*0.5 -> 93,966.21 | N28: ='[12]ССР_АСБ-10 -240'!$H$22*0.5 -> 97,394.67 | O28: ='[13]ССР_АПвПг-70'!$H$22*0.5 -> 90,667.21 | P28: ='[13]ССР_АПвПг-95'!$H$22*0.5 -> 94,268.88 | Q28: ='[13]ССР_АПвПг-120'!$H$22*0.5 -> 99,088.27 | R28: ='[13]ССР_АПвПг-150'!$H$22*0.5 -> 100,206.37 | S28: ='[13]ССР_АПвПг-185'!$H$22*0.5 -> 111,371.35 | T28: ='[13]ССР_АПвПг-240'!$H$22*0.5 -> 109,002.17 | U28: ='[13]ССР_АПвПг-300'!$H$22*0.5 -> 112,207.06 | V28: ='[13]ССР_АПвПг-400'!$H$22*0.5 -> 114,176.29 | W28: ='[13]ССР_АПвПг-500'!$H$22*0.5 -> 118,895.66
A29: сельская застройка | C29: ='[12]ССР_ААБЛ-10 -70'!$H$22*0.5 -> 84,971.33 | D29: ='[12]ССР_ААБЛ-10 -95'!$H$22*0.5 -> 86,012.14 | E29: ='[12]ССР_ААБЛ-10 -120'!$H$22*0.5 -> 87,570.44 | F29: ='[12]ССР_ААБЛ-10 -150'!$H$22*0.5 -> 89,005.04 | G29: ='[12]ССР_ААБЛ-10 -185'!$H$22*0.5 -> 91,126.53 | H29: ='[12]ССР_ААБЛ-10 -240'!$H$22*0.5 -> 93,780.47 | I29: ='[12]ССР_АСБ-10 -10'!$H$22*0.5 -> 86,810.07 | J29: ='[12]ССР_АСБ-10 -95'!$H$22*0.5 -> 88,463.34 | K29: ='[12]ССР_АСБ-10 -120'!$H$22*0.5 -> 90,025.98 | L29: ='[12]ССР_АСБ-10 -150'!$H$22*0.5 -> 91,745.38 | M29: ='[12]ССР_АСБ-10 -185'!$H$22*0.5 -> 93,966.21 | N29: ='[12]ССР_АСБ-10 -240'!$H$22*0.5 -> 97,394.67 | O29: ='[13]ССР_АПвПг-70'!$H$22*0.5 -> 90,667.21 | P29: ='[13]ССР_АПвПг-95'!$H$22*0.5 -> 94,268.88 | Q29: ='[13]ССР_АПвПг-120'!$H$22*0.5 -> 99,088.27 | R29: ='[13]ССР_АПвПг-150'!$H$22*0.5 -> 100,206.37 | S29: ='[13]ССР_АПвПг-185'!$H$22*0.5 -> 111,371.35 | T29: ='[13]ССР_АПвПг-240'!$H$22*0.5 -> 109,002.17 | U29: ='[13]ССР_АПвПг-300'!$H$22*0.5 -> 112,207.06 | V29: ='[13]ССР_АПвПг-400'!$H$22*0.5 -> 114,176.29 | W29: ='[13]ССР_АПвПг-500'!$H$22*0.5 -> 118,895.66
A31: Стандартизированные тарифные ставки на покрытие расходов в части строительства трансформаторных подстанций, С4, руб./кВт, без НДС, (в ценах 2001 года) с 1 января по 30 сентября 2017 года
A32: 16 кВА | B32: 25 кВА | C32: 40 кВА | D32: 63 кВА | K32: 100 кВА | R32: 160 кВА
A33: СТП | D33: КТП киоскового типа | H33: КТП блочного типа в бетонной оболочке | K33: КТП киоскового типа | O33: КТП блочного типа в бетонной оболочке | R33: КТП киоскового типа | V33: КТП блочного типа в бетонной оболочке
A34: однотрансформаторная | D34: однотрансформаторная | F34: двухтрансформаторная | H34: однотрансформаторная | I34: двухтрансформаторная | K34: однотрансформаторная | M34: двухтрансформаторная | O34: однотрансформаторная | P34: двухтрансформаторная | R34: однотрансформаторная | T34: двухтрансформаторная | V34: однотрансформаторная | W34: двухтрансформаторная
D35: тупикового типа | E35: проходного типа | F35: тупикового типа | G35: проходного типа | I35: тупикового типа | J35: проходного типа | K35: тупикового типа | L35: проходного типа | M35: тупикового типа | N35: проходного типа | P35: тупикового типа | Q35: проходного типа | R35: тупикового типа | S35: проходного типа | T35: тупикового типа | U35: проходного типа | W35: тупикового типа | X35: проходного типа
A36: ='[14]ССР_СТП 16кВа'!$H$22*0.5 -> 1,867.40 | B36: ='[14]ССР_СТП 25кВа '!$H$22*0.5 -> 1,212.96 | C36: ='[14]ССР_СТП 40кВа'!$H$22*0.5 -> 772.55 | D36: ='[15]ССР_КТПт 63кВА'!$H$22*0.5 -> 632.83 | E36: ='[15]ССР_КТПп 63кВА'!$H$22*0.5 -> 1,316.66 | F36: ='[16]ССР_2КТПт 63 кВА'!$H$22*0.5 -> 5,121.79 | G36: ='[16]ССР_2КТПп 63 кВА'!$H$22*0.5 -> 2,995.34 | H36: ='[17]ССР_БКТП-63'!$H$22*0.5 -> 3,783.42 | I36: ='[18]ССР_БКТП-63 т'!$H$22*0.5 -> 6,985.37 | J36: ='[18]ССР_БКТП-63 п'!$H$22*0.5 -> 7,142.90 | K36: ='[15]ССР_КТПт 100кВА'!$H$22*0.5 -> 412.02 | L36: ='[15]ССР_КТПп 100кВА'!$H$22*0.5 -> 859.27 | M36: ='[16]ССР_2КТПт 100 кВА'!$H$22*0.5 -> 3,325.97 | N36: ='[16]ССР_2КТПп 100 кВА'!$H$22*0.5 -> 1,946.49 | O36: ='[17]ССР_БКТП-100'!$H$22*0.5 -> 2,681.28 | P36: ='[18]ССР_БКТП-100 т'!$H$22*0.5 -> 4,500.02 | Q36: ='[18]ССР_БКТП-100 п'!$H$22*0.5 -> 4,748.13 | R36: ='[15]ССР_КТПт 160кВА'!$H$22*0.5 -> 279.88 | S36: ='[15]ССР_КТПп 160кВА'!$H$22*0.5 -> 561.85 | T36: ='[16]ССР_2КТПт 160 кВА'!$H$22*0.5 -> 2,140.76 | U36: ='[16]ССР_2КТПп 160 кВА'!$H$22*0.5 -> 1,241.37 | V36: ='[17]ССР_БКТП-160'!$H$22*0.5 -> 1,737.83 | W36: ='[18]ССР_БКТП-160 т'!$H$22*0.5 -> 2,874.54 | X36: ='[18]ССР_БКТП-160 п'!$H$22*0.5 -> 3,060.62
A39: 250 кВА | H39: 400 кВА | O39: 630 кВА
A40: КТП киоскового типа | E40: КТП блочного типа в бетонной оболочке | H40: КТП киоскового типа | L40: КТП блочного типа в бетонной оболочке | O40: КТП киоскового типа | S40: КТП блочного типа в бетонной оболочке
A41: однотрансформаторная | C41: двухтрансформаторная | E41: однотрансформаторная | F41: двухтрансформаторная | H41: однотрансформаторная | J41: двухтрансформаторная | L41: однотрансформаторная | M41: двухтрансформаторная | O41: однотрансформаторная | Q41: двухтрансформаторная | S41: однотрансформаторная | T41: двухтрансформаторная
A42: тупикового типа | B42: проходного типа | C42: тупикового типа | D42: проходного типа | F42: тупикового типа | G42: проходного типа | H42: тупикового типа | I42: проходного типа | J42: тупикового типа | K42: проходного типа | M42: тупикового типа | N42: проходного типа | O42: тупикового типа | P42: проходного типа | Q42: тупикового типа | R42: проходного типа | T42: тупикового типа | U42: проходного типа
A43: ='[15]ССР_КТПт 250кВА'!$H$22*0.5 -> 192.86 | B43: ='[15]ССР_КТПп 250кВА'!$H$22*0.5 -> 387.37 | C43: ='[16]ССР_2КТПт 250 кВА'!$H$22*0.5 -> 1,409.78 | D43: ='[16]ССР_2КТПп 250 кВА'!$H$22*0.5 -> 854.02 | E43: ='[17]ССР_БКТП-250'!$H$22*0.5 -> 1,092.36 | F43: ='[18]ССР_БКТП-250 т'!$H$22*0.5 -> 1,879.40 | G43: ='[18]ССР_БКТП-250 п '!$H$22*0.5 -> 2,077.89 | H43: ='[19]ССР_КТПт 400кВА'!$H$22*0.5 -> 143.29 | I43: ='[19]ССР_КТПп 400кВА'!$H$22*0.5 -> 252.27 | J43: ='[20]ССР_2КТПт 400кВА'!$H$22*0.5 -> 922.50 | K43: ='[20]ССР_2КТПп 400кВА '!$H$22*0.5 -> 587.56 | L43: ='[21]ССР_БКТП-400'!$H$22*0.5 -> 720.78 | M43: ='[22]ССР_2БКТП-400 т'!$H$22*0.5 -> 1,230.92 | N43: ='[22]ССР_2БКТП-400 п'!$H$22*0.5 -> 1,354.98 | O43: ='[19]ССР_КТПт 630кВА'!$H$22*0.5 -> 133.10 | P43: ='[19]ССР_КТПп 630кВА'!$H$22*0.5 -> 199.55 | Q43: ='[20]ССР_2КТПт 630кВА'!$H$22*0.5 -> 640.85 | R43: ='[20]ССР_2КТПп 630кВА'!$H$22*0.5 -> 436.06 | S43: ='[21]ССР_БКТП-630'!$H$22*0.5 -> 489.14 | T43: ='[22]ССР_2БКТП-630 т'!$H$22*0.5 -> 876.05 | U43: ='[22]ССР_2БКТП-630 п'!$H$22*0.5 -> 907.56
A45: 1000 кВА | H45: 1250 кВА | K45: 1600 кВА | N45: 2500 кВА | P45: РП 6 кВ | R45: РП 10 кВ
A46: КТП киоскового типа | E46: КТП блочного типа в бетонной оболочке | H46: КТП блочного типа в бетонной оболочке | K46: КТП блочного типа в бетонной оболочке | N46: КТП блочного типа в бетонной оболочке
A47: однотрансформаторная | C47: двухтрансформаторная | E47: однотрансформаторная | F47: двухтрансформаторная | H47: однотрансформаторная | I47: двухтрансформаторная | K47: однотрансформаторная | L47: двухтрансформаторная | N47: однотрансформаторная | O47: двухтрансформаторная
A48: тупикового типа | B48: проходного типа | C48: тупикового типа | D48: проходного типа | F48: тупикового типа | G48: проходного типа | I48: тупикового типа | J48: проходного типа | L48: тупикового типа | M48: проходного типа
A49: ='[19]ССР_КТПт 1000кВА'!$H$22*0.5 -> 124.33 | B49: ='[19]ССР_КТПп 1000кВА'!$H$22*0.5 -> 153.51 | C49: ='[20]ССР_2КТПт 1000кВА '!$H$22*0.5 -> 483.13 | D49: ='[20]ССР_2КТПп 1000кВА'!$H$22*0.5 -> 304.49 | E49: ='[21]ССР_БКТП-1000'!$H$22*0.5 -> 342.90 | F49: ='[22]ССР_2БКТП-1000 т'!$H$22*0.5 -> 572.78 | G49: ='[22]ССР_2БКТП-1000 п'!$H$22*0.5 -> 651.16 | H49: ='[21]ССР_БКТП-1250'!$H$22*0.5 -> 286.23 | I49: ='[22]ССР_2БКТП-1250 т'!$H$22*0.5 -> 560.62 | J49: ='[22]ССР_2БКТП-1250 п'!$H$22*0.5 -> 584.44 | K49: ='[21]ССР_БКТП-1250'!$H$22*0.5 -> 286.23 | L49: ='[22]ССР_2БКТП-1600 т'!$H$22*0.5 -> 493.81 | M49: ='[22]ССР_2БКТП-1600 п'!$H$22*0.5 -> 518.62 | N49: ='[22]ССР_БКТП-2500 п (2)'!$H$22*0.5 -> 194.83 | O49: ='[22]ССР_2БКТП-2500 п '!$H$22*0.5 -> 448.96 | P49: ='[23]ССР_РП 6 кВ'!$H$22*0.5 -> 351.14 | R49: ='[24]ССР_РП 10 кВ'!$H$22/11000*0.5 -> 246.76
A51: Примечание:
A52: Условия применения стандартизированных тарифных ставок определены приказом ФСТ России от 11.09.2012 № 209-э/1 "Об утверждении Методических указаний по определению размера платы за технологическое присоединение к электрическим сетям"
